lending/lending_fUSD_20241229
["ID","MTS","AMOUNT","RATE_DAILY","PERIOD"]
[347095886,1735494653779,-500.0,0.00014547,2]
[347095887,1735494653788,-1722.61,0.00014547,2]
[347095888,1735494653798,-3931.35,0.00014547,2]
[347095889,1735494653808,-574.37,0.00014548,2]
[347095890,1735494653817,-4185.08,0.00014548,2]
[347095891,1735494653827,-500.0,0.00014548,2]
[347095892,1735494653836,-500.0,0.00014548,2]
[347095893,1735494653846,-500.0,0.00014548,2]
[347095894,1735494653856,-500.0,0.00014548,2]
[347095895,1735494653865,-1191.93,0.00014548,2]
[347095896,1735494653874,-500.0,0.00014549,2]
[347095897,1735494653883,-200.0,0.00014569,2]
[347095898,1735494653893,-151.0,0.00014685,2]
[347095899,1735494653903,-5561.0,0.000148,5]
[347095900,1735494653912,-500.0,0.00014806,2]
[347095901,1735494653921,-235.224862,0.00014818,2]
[347095902,1735494653931,-187.548415,0.00014818,2]
[347095903,1735494653940,-1835.06,0.00014818,2]
[347095904,1735494653950,-500.0,0.00014818,2]
[347095905,1735494653959,-500.0,0.00014818,2]
[347095906,1735494653968,-347.93233861,0.00014818,2]
[347095907,1735494653978,-500.0,0.00014818,2]
[347095908,1735494653988,-500.0,0.00014818,2]
[347095909,1735494653998,-588.42,0.00014818,2]
[347095910,1735494654007,-1459.54,0.00014818,2]
[347095911,1735494654017,-649.94,0.00014818,2]
[347095912,1735494654026,-871.09,0.00014819,2]
[347095913,1735494654035,-500.0,0.0001482,2]
[347095914,1735494654045,-1870.06,0.0001482,2]
[347095915,1735494654054,-500.0,0.0001482,2]
[347095916,1735494654064,-500.0,0.0001482,2]
[347095917,1735494654073,-546.5,0.0001482,2]
[347095918,1735494654083,-500.0,0.0001482,2]
[347095919,1735494654092,-512.93,0.00014821,2]
[347095920,1735494654101,-500.0,0.00014821,2]
[347095921,1735494654110,-2201.67,0.00014821,2]
[347095922,1735494654120,-634.13,0.00014821,2]
[347095923,1735494654129,-611.21,0.00014821,2]
[347095924,1735494654138,-1185.94,0.00014821,2]
[347095925,1735494654147,-709.12,0.00014821,2]
[347095926,1735494654157,-564.41,0.00014821,2]
[347095927,1735494654166,-500.0,0.00014821,2]
[347095928,1735494654175,-845.01,0.00014821,2]
[347095929,1735494654185,-500.0,0.00014821,2]
[347095930,1735494654194,-427.67,0.00014821,2]
[347095931,1735494654203,-500.0,0.00014821,2]
[347095932,1735494654212,-739.8,0.00014821,2]
[347095933,1735494654222,-725.67,0.00014821,2]
[347095934,1735494654232,-500.0,0.00014821,2]
[347095935,1735494654241,-500.0,0.00014821,2]
[347095936,1735494654250,-500.0,0.00014821,2]
[347095937,1735494654259,-655.67,0.00014821,2]
[347095938,1735494654268,-743.25,0.00014821,2]
[347095939,1735494654278,-1059.36,0.00014821,2]
[347095940,1735494654286,-500.0,0.00014821,2]
[347095941,1735494654296,-925.05,0.00014821,2]
[347095942,1735494654306,-618.35,0.00014821,2]
[347095943,1735494654315,-500.0,0.00014821,2]
[347095944,1735494654324,-1722.61,0.00014821,2]
[347095945,1735494654334,-3931.35,0.00014821,2]
[347095946,1735494654343,-574.37,0.00014822,2]
[347095947,1735494654352,-4185.08,0.00014822,2]
[347095948,1735494654362,-500.0,0.00014822,2]
[347095949,1735494654371,-500.0,0.00014822,2]
[347095950,1735494654381,-500.0,0.00014822,2]
[347095951,1735494654390,-500.0,0.00014822,2]
[347095952,1735494654399,-1191.93,0.00014822,2]
[347095953,1735494654409,-500.0,0.00014823,2]
[347095954,1735494654419,-154.98,0.00014966,2]
[347095955,1735494654428,-8140.0,0.00015,3]
[347095956,1735494654437,-79912.0,0.00015,3]
[347095957,1735494654447,-300.0,0.00015068,2]
[347095958,1735494654456,-235.224862,0.00015092,2]
[347095959,1735494654469,-187.548415,0.00015092,2]
[347095960,1735494654478,-1835.06,0.00015092,2]
[347095961,1735494654488,-500.0,0.00015092,2]
[347095962,1735494654498,-500.0,0.00015092,2]
[347095963,1735494654507,-500.0,0.00015092,2]
[347095964,1735494654517,-500.0,0.00015092,2]
[347095965,1735494654526,-588.42,0.00015092,2]
[347095966,1735494654536,-1459.54,0.00015092,2]
[347095967,1735494654545,-871.09,0.00015093,2]
[347095968,1735494654555,-500.0,0.00015094,2]
[347095969,1735494654565,-1870.06,0.00015094,2]
[347095970,1735494654574,-500.0,0.00015094,2]
[347095971,1735494654584,-500.0,0.00015094,2]
[347095972,1735494654593,-546.5,0.00015094,2]
[347095973,1735494654602,-500.0,0.00015094,2]
[347095974,1735494654612,-512.93,0.00015095,2]
[347095975,1735494654621,-500.0,0.00015095,2]
[347095976,1735494654630,-2201.67,0.00015095,2]
[347095977,1735494654640,-634.13,0.00015095,2]
[347095978,1735494654649,-1185.94,0.00015095,2]
[347095979,1735494654658,-709.12,0.00015095,2]
[347095980,1735494654668,-564.41,0.00015095,2]
[347095981,1735494654678,-500.0,0.00015095,2]
[347095982,1735494654687,-845.01,0.00015095,2]
[347095983,1735494654696,-500.0,0.00015095,2]
[347095984,1735494654706,-500.0,0.00015095,2]
[347095985,1735494654715,-739.8,0.00015095,2]
[347095986,1735494654724,-725.67,0.00015095,2]
[347095987,1735494654734,-500.0,0.00015095,2]
[347095988,1735494654744,-500.0,0.00015095,2]
[347095989,1735494654753,-549.59,0.00015095,2]
[347095990,1735494654765,-655.67,0.00015095,2]
[347095991,1735494654774,-743.25,0.00015095,2]
[347095992,1735494654783,-1059.36,0.00015095,2]
[347095993,1735494654793,-500.0,0.00015095,2]
[347095994,1735494654802,-925.05,0.00015095,2]
[347095995,1735494654812,-618.35,0.00015095,2]
[347095996,1735494654821,-309.05,0.00015095,2]
[347095997,1735494654830,-1722.61,0.00015095,2]
[347095998,1735494654839,-3931.35,0.00015095,2]
[347095999,1735494654849,-912.67,0.00015096,2]
[347096000,1735494654858,-574.37,0.00015096,2]
[347096001,1735494654868,-4185.08,0.00015096,2]
[347096002,1735494654877,-500.0,0.00015096,2]
[347096003,1735494654886,-500.0,0.00015096,2]
[347096004,1735494654896,-500.0,0.00015096,2]
[347096005,1735494654905,-500.0,0.00015096,2]
[347096006,1735494654914,-500.0,0.00015097,2]
[347096007,1735494654924,-1000.0,0.00015162,2]
[347096008,1735494654933,-322.56,0.00015239,2]
[347096009,1735494654943,-1517.64,0.000153,2]
[347096010,1735494654952,-436.06,0.00015308,2]
[347096011,1735494654962,-1109.1,0.00015335,2]
[347096012,1735494654971,-1000.0,0.00015354,2]
[347096013,1735494654981,-235.224862,0.00015366,2]
[347096014,1735494654990,-187.548415,0.00015366,2]
[347096015,1735494655001,-1835.06,0.00015366,2]
[347096016,1735494655010,-500.0,0.00015366,2]
[347096017,1735494655019,-500.0,0.00015366,2]
[347096018,1735494655028,-500.0,0.00015366,2]
[347096019,1735494655038,-500.0,0.00015366,2]
[347096020,1735494655047,-588.42,0.00015366,2]
[347096021,1735494655056,-1459.54,0.00015366,2]
[347096022,1735494655065,-871.09,0.00015367,2]
[347096023,1735494655074,-500.0,0.00015368,2]
[347096024,1735494655084,-1870.06,0.00015368,2]
[347096025,1735494655093,-500.0,0.00015368,2]
[347096026,1735494655103,-199.53979944,0.00015368,2]
[347096027,1735494655112,-546.5,0.00015368,2]
[347096028,1735494655122,-500.0,0.00015368,2]
[347096029,1735494655130,-512.93,0.00015369,2]
[347096030,1735494655139,-500.0,0.00015369,2]
[347096031,1735494655150,-2201.67,0.00015369,2]
[347096032,1735494655159,-634.13,0.00015369,2]
[347096033,1735494655168,-1185.94,0.00015369,2]
[347096034,1735494655177,-709.12,0.00015369,2]
[347096035,1735494655186,-564.41,0.00015369,2]
[347096036,1735494655196,-500.0,0.00015369,2]
[347096037,1735494655205,-845.01,0.00015369,2]
[347096038,1735494655214,-500.0,0.00015369,2]
[347096039,1735494655223,-470.511598,0.00015369,2]
[347096040,1735494655232,-739.8,0.00015369,2]
[347096041,1735494655241,-725.67,0.00015369,2]
[347096042,1735494655250,-500.0,0.00015369,2]
[347096043,1735494655260,-500.0,0.00015369,2]
[347096044,1735494655270,-655.67,0.00015369,2]
[347096045,1735494655279,-743.25,0.00015369,2]
[347096046,1735494655288,-1059.36,0.00015369,2]
[347096047,1735494655296,-500.0,0.00015369,2]
[347096048,1735494655305,-618.35,0.00015369,2]
[347096049,1735494655314,-925.05,0.00015369,2]
[347096050,1735494655323,-1722.61,0.00015369,2]
[347096051,1735494655332,-3931.35,0.00015369,2]
[347096052,1735494655341,-574.37,0.0001537,2]
[347096053,1735494655350,-4185.08,0.0001537,2]
[347096054,1735494655359,-500.0,0.0001537,2]
[347096055,1735494655369,-500.0,0.0001537,2]
[347096056,1735494655379,-510.25729886,0.0001537,2]
[347096057,1735494655388,-500.0,0.0001537,2]
[347096058,1735494655397,-500.0,0.00015371,2]
[347096059,1735494655406,-152.0,0.00015445,3]
[347096060,1735494655416,-235.224862,0.0001564,2]
[347096061,1735494655425,-187.548415,0.0001564,2]
[347096062,1735494655435,-1835.06,0.0001564,2]
[347096063,1735494655444,-648.33,0.0001564,2]
[347096064,1735494655453,-500.0,0.0001564,2]
[347096065,1735494655467,-494.82360883,0.0001564,2]
[347096066,1735494655476,-500.0,0.0001564,2]
[347096067,1735494655485,-588.42,0.0001564,2]
[347096068,1735494655495,-1459.54,0.0001564,2]
[347096069,1735494655506,-871.09,0.00015641,2]
[347096070,1735494655515,-500.0,0.00015642,2]
[347096071,1735494655523,-1870.06,0.00015642,2]
[347096072,1735494655535,-500.0,0.00015642,2]
[347096073,1735494655544,-546.5,0.00015642,2]
[347096074,1735494655553,-500.0,0.00015642,2]
[347096075,1735494655563,-512.93,0.00015643,2]
[347096076,1735494655571,-638.59638905,0.00015643,2]
[347096077,1735494655580,-2201.67,0.00015643,2]
[347096078,1735494655589,-634.13,0.00015643,2]
[347096079,1735494655598,-1185.94,0.00015643,2]
[347096080,1735494655607,-709.12,0.00015643,2]
[347096081,1735494655616,-564.41,0.00015643,2]
[347096082,1735494655625,-500.0,0.00015643,2]
[347096083,1735494655634,-845.01,0.00015643,2]
[347096084,1735494655643,-169.19986705,0.00015643,2]
[347096085,1735494655654,-739.8,0.00015643,2]
[347096086,1735494655664,-725.67,0.00015643,2]
[347096087,1735494655673,-500.0,0.00015643,2]
[347096088,1735494655684,-641.68142343,0.00015643,2]
[347096089,1735494655694,-655.67,0.00015643,2]
[347096090,1735494655704,-743.25,0.00015643,2]
[347096091,1735494655713,-1059.36,0.00015643,2]
[347096092,1735494655723,-500.0,0.00015643,2]
[347096093,1735494655731,-618.35,0.00015643,2]
[347096094,1735494655740,-925.05,0.00015643,2]
[347096095,1735494655750,-1722.61,0.00015643,2]
[347096096,1735494655760,-3931.35,0.00015643,2]
[347096097,1735494655769,-574.37,0.00015644,2]
[347096098,1735494655779,-4185.08,0.00015644,2]
[347096099,1735494655788,-500.0,0.00015644,2]
[347096100,1735494655797,-500.0,0.00015644,2]
[347096101,1735494655806,-500.0,0.00015644,2]
[347096102,1735494655815,-500.0,0.00015645,2]
[347096103,1735494655824,-1500.0,0.00015663,2]
[347096104,1735494655833,-9250.0,0.000157,2]
[347096105,1735494655843,-409.56,0.00015759,2]
[347096106,1735494655851,-900.0,0.00015808,2]
[347096107,1735494655861,-235.224862,0.00015914,2]
[347096108,1735494655869,-187.548415,0.00015914,2]
[347096109,1735494655878,-1835.06,0.00015914,2]
[347096110,1735494655887,-500.0,0.00015914,2]
[347096111,1735494655896,-500.0,0.00015914,2]
[347096112,1735494655905,-588.42,0.00015914,2]
[347096113,1735494655914,-1459.54,0.00015914,2]
[347096114,1735494655923,-871.09,0.00015915,2]
[347096115,1735494655932,-500.0,0.00015916,2]
[347096116,1735494655941,-1870.06,0.00015916,2]
[347096117,1735494655950,-500.0,0.00015916,2]
[347096118,1735494655959,-546.5,0.00015916,2]
[347096119,1735494655969,-500.0,0.00015916,2]
[347096120,1735494655978,-512.93,0.00015917,2]
[347096121,1735494655987,-2201.67,0.00015917,2]
[347096122,1735494655996,-634.13,0.00015917,2]
[347096123,1735494656005,-1185.94,0.00015917,2]
[347096124,1735494656015,-709.12,0.00015917,2]
[347096125,1735494656024,-564.41,0.00015917,2]
[347096126,1735494656033,-550.62,0.00015917,2]
[347096127,1735494656042,-845.01,0.00015917,2]
[347096128,1735494656051,-739.8,0.00015917,2]
[347096129,1735494656060,-725.67,0.00015917,2]
[347096130,1735494656070,-500.0,0.00015917,2]
[347096131,1735494656079,-655.67,0.00015917,2]
[347096132,1735494656088,-743.25,0.00015917,2]
[347096133,1735494656097,-1059.36,0.00015917,2]
[347096134,1735494656106,-500.0,0.00015917,2]
[347096135,1735494656115,-618.35,0.00015917,2]
[347096136,1735494656126,-925.05,0.00015917,2]
[347096137,1735494656135,-1722.61,0.00015917,2]
[347096138,1735494656145,-574.37,0.00015918,2]
[347096139,1735494656157,-4185.08,0.00015918,2]
[347096140,1735494656167,-500.0,0.00015918,2]
[347096141,1735494656177,-500.0,0.00015918,2]
[347096142,1735494656187,-646.94,0.00015918,2]
[347096143,1735494656196,-552.39254442,0.00015919,2]
[347096144,1735494656205,-550.0,0.00016,2]
[347096145,1735494656214,-20265.52,0.00016116,2]
[347096146,1735494656223,-29999.99,0.00016116,2]
[347096147,1735494656232,-235.224862,0.00016188,2]
[347096148,1735494656241,-187.548415,0.00016188,2]
[347096149,1735494656252,-1835.06,0.00016188,2]
[347096150,1735494656260,-581.99995728,0.00016188,2]
[347096151,1735494656270,-500.0,0.00016188,2]
[347096152,1735494656279,-588.42,0.00016188,2]
[347096153,1735494656288,-1459.54,0.00016188,2]
[347096154,1735494656297,-871.09,0.00016189,2]
[347096155,1735494656306,-500.0,0.0001619,2]
[347096156,1735494656315,-1870.06,0.0001619,2]
[347096157,1735494656324,-500.0,0.0001619,2]
[347096158,1735494656334,-546.5,0.0001619,2]
[347096159,1735494656344,-500.0,0.0001619,2]
[347096160,1735494656353,-512.93,0.00016191,2]
[347096161,1735494656362,-2201.67,0.00016191,2]
[347096162,1735494656371,-634.13,0.00016191,2]
[347096163,1735494656381,-1185.94,0.00016191,2]
[347096164,1735494656390,-709.12,0.00016191,2]
[347096165,1735494656399,-564.41,0.00016191,2]
[347096166,1735494656408,-845.01,0.00016191,2]
[347096167,1735494656417,-739.8,0.00016191,2]
[347096168,1735494656427,-725.67,0.00016191,2]
[347096169,1735494656436,-500.0,0.00016191,2]
[347096170,1735494656445,-655.67,0.00016191,2]
[347096171,1735494656454,-743.25,0.00016191,2]
[347096172,1735494656468,-1059.36,0.00016191,2]
[347096173,1735494656477,-600.99737932,0.00016191,2]
[347096174,1735494656486,-618.35,0.00016191,2]
[347096175,1735494656497,-925.05,0.00016191,2]
[347096176,1735494656507,-1722.61,0.00016191,2]
[347096177,1735494656517,-574.37,0.00016192,2]
[347096178,1735494656526,-4185.08,0.00016192,2]
[347096179,1735494656536,-500.0,0.00016192,2]
[347096180,1735494656545,-500.0,0.00016192,2]
[347096181,1735494656554,-901.0,0.000163,2]
[347096182,1735494656562,-152.0,0.00016307,4]
[347096183,1735494656571,-1134.76061341,0.00016325,2]
[347096184,1735494656580,-979.91270081,0.00016325,2]
[347096185,1735494656589,-154.98,0.00016327,2]
[347096186,1735494656598,-5019.0,0.0001635,2]
[347096187,1735494656607,-500.0,0.00016356,2]
[347096188,1735494656616,-5000.0,0.000164,2]
[347096189,1735494656625,-2504.01,0.00016415,7]
[347096190,1735494656634,-2504.01,0.00016415,7]
[347096191,1735494656644,-2504.01,0.00016415,7]
[347096192,1735494656652,-2504.01,0.00016415,7]
[347096193,1735494656661,-150.0,0.00016433,2]
[347096194,1735494656670,-150.0,0.00016434,2]
[347096195,1735494656679,-1000.0,0.00016438,2]
[347096196,1735494656688,-1945.48,0.00016438,2]
[347096197,1735494656697,-200.0,0.00016438,2]
[347096198,1735494656706,-202.52,0.00016438,2]
[347096199,1735494656716,-300.0,0.00016438,2]
[347096200,1735494656726,-150.0,0.00016438,2]
[347096201,1735494656734,-150.0,0.00016451,2]
[347096202,1735494656744,-150.0,0.00016458,2]
[347096203,1735494656752,-150.0,0.00016459,2]
[347096204,1735494656761,-235.224862,0.00016462,2]
[347096205,1735494656770,-187.548415,0.00016462,2]
[347096206,1735494656779,-1835.06,0.00016462,2]
[347096207,1735494656789,-500.0,0.00016462,2]
[347096208,1735494656798,-588.42,0.00016462,2]
[347096209,1735494656807,-1459.54,0.00016462,2]
[347096210,1735494656816,-871.09,0.00016463,2]
[347096211,1735494656826,-500.0,0.00016464,2]
[347096212,1735494656835,-1870.06,0.00016464,2]
[347096213,1735494656844,-500.0,0.00016464,2]
[347096214,1735494656854,-546.5,0.00016464,2]
[347096215,1735494656863,-359.90688594,0.00016464,2]
[347096216,1735494656873,-512.93,0.00016465,2]
[347096217,1735494656882,-2201.67,0.00016465,2]
[347096218,1735494656891,-1000.0,0.00016465,2]
[347096219,1735494656899,-634.13,0.00016465,2]
[347096220,1735494656909,-1185.94,0.00016465,2]
[347096221,1735494657066,-709.12,0.00016465,2]
[347096222,1735494657076,-564.41,0.00016465,2]
[347096223,1735494657085,-845.01,0.00016465,2]
[347096224,1735494657095,-739.8,0.00016465,2]
[347096225,1735494657104,-725.67,0.00016465,2]
[347096226,1735494657114,-500.0,0.00016465,2]
[347096227,1735494657124,-655.67,0.00016465,2]
[347096228,1735494657134,-1059.36,0.00016465,2]
[347096229,1735494657143,-743.25,0.00016465,2]
[347096230,1735494657153,-618.35,0.00016465,2]
[347096231,1735494657162,-925.05,0.00016465,2]
[347096232,1735494657171,-574.37,0.00016466,2]
[347096233,1735494657181,-4185.08,0.00016466,2]
[347096234,1735494657190,-491.89,0.00016466,2]
[347096235,1735494657200,-500.0,0.00016466,2]
[347096236,1735494657209,-1000.0,0.00016493,2]
[347096237,1735494657219,-150.0,0.00016499,2]
[347096238,1735494657228,-150.0,0.00016513,2]
[347096239,1735494657237,-1000.0,0.0001652,2]
[347096240,1735494657246,-150.0,0.00016527,2]
[347096241,1735494657255,-150.0,0.00016535,2]
[347096242,1735494657265,-1000.0,0.0001654,2]
[347096243,1735494657275,-300.0,0.00016541,2]
[347096244,1735494657284,-150.0,0.00016541,2]
[347096245,1735494657293,-150.0,0.00016541,2]
[347096246,1735494657302,-436.65,0.00016541,2]
[347096247,1735494657311,-150.0,0.00016541,2]
[347096248,1735494657320,-150.0,0.00016541,2]
[347096249,1735494657329,-436.41,0.00016541,2]
[347096250,1735494657338,-978.28,0.00016541,2]
[347096251,1735494657347,-978.28,0.00016541,2]
[347096252,1735494657357,-150.0,0.00016541,2]
[347096253,1735494657366,-150.0,0.00016546,2]
[347096254,1735494657376,-1000.0,0.00016547,2]
[347096255,1735494657386,-5000.0,0.0001655,2]
[347096256,1735494657395,-150.0,0.00016554,2]
[347096257,1735494657404,-150.0,0.00016559,2]
[347096258,1735494657413,-150.0,0.00016563,2]
[347096259,1735494657422,-1000.0,0.00016575,2]
[347096260,1735494657432,-1500.0,0.000166,7]
[347096261,1735494657441,-1000.0,0.00016602,2]
[347096262,1735494657450,-150.0,0.00016603,2]
[347096263,1735494657462,-150.0,0.00016606,2]
[347096264,1735494657471,-854.11,0.0001663,2]
[347096265,1735494657480,-150.0,0.00016637,2]
[347096266,1735494657489,-500.0,0.00016649,14]
[347096267,1735494657498,-150.0,0.00016656,2]
[347096268,1735494657509,-262.96,0.00016658,30]
[347096269,1735494657518,-500.0,0.00016658,14]
[347096270,1735494657527,-2356.113,0.0001666,2]
[347096271,1735494657539,-164.91,0.0001666,2]
[347096272,1735494657549,-150.0,0.00016661,2]
[347096273,1735494657557,-150.0,0.00016675,2]
[347096274,1735494657566,-150.0,0.00016681,2]
[347096275,1735494657576,-2504.01,0.00016689,7]
[347096276,1735494657584,-2504.01,0.00016689,7]
[347096277,1735494657593,-150.0,0.00016696,2]
[347096278,1735494657602,-150.0,0.00016697,2]
[347096279,1735494657611,-172.03903036,0.000167,2]
[347096280,1735494657620,-150.0,0.000167,2]
[347096281,1735494657630,-150.0,0.00016702,2]
[347096282,1735494657638,-184.59,0.00016712,2]
[347096283,1735494657647,-150.0,0.0001672,2]
[347096284,1735494657656,-150.0,0.00016728,2]
[347096285,1735494657665,-1835.06,0.00016736,2]
[347096286,1735494657674,-500.0,0.00016736,2]
[347096287,1735494657683,-588.42,0.00016736,2]
[347096288,1735494657693,-1459.54,0.00016736,2]
[347096289,1735494657702,-871.09,0.00016737,2]
[347096290,1735494657711,-500.0,0.00016738,2]
[347096291,1735494657720,-1870.06,0.00016738,2]
[347096292,1735494657729,-500.0,0.00016738,2]
[347096293,1735494657738,-546.5,0.00016738,2]
[347096294,1735494657748,-512.93,0.00016739,2]
[347096295,1735494657757,-2201.67,0.00016739,2]
[347096296,1735494657766,-634.13,0.00016739,2]
[347096297,1735494657775,-1185.94,0.00016739,2]
[347096298,1735494657784,-709.12,0.00016739,2]
[347096299,1735494657793,-564.41,0.00016739,2]
[347096300,1735494657802,-845.01,0.00016739,2]
[347096301,1735494657811,-739.8,0.00016739,2]
[347096302,1735494657821,-725.67,0.00016739,2]
[347096303,1735494657830,-462.1,0.00016739,2]
[347096304,1735494657839,-655.67,0.00016739,2]
[347096305,1735494657848,-1059.36,0.00016739,2]
[347096306,1735494657858,-743.25,0.00016739,2]
[347096307,1735494657867,-618.35,0.00016739,2]
[347096308,1735494657876,-925.05,0.00016739,2]
[347096309,1735494657885,-887.50501801,0.0001674,2]
[347096310,1735494657894,-574.37,0.0001674,2]
[347096311,1735494657903,-4185.08,0.0001674,2]
[347096312,1735494657912,-500.0,0.0001674,2]
[347096313,1735494657921,-150.0,0.00016751,2]
[347096314,1735494657931,-150.0,0.00016751,2]
[347096315,1735494657940,-150.0,0.00016756,2]
[347096316,1735494657949,-150.0,0.00016762,2]
[347096317,1735494657958,-1967.56153244,0.00016766,5]
[347096318,1735494657967,-266.2515054,0.00016767,2]
[347096319,1735494657976,-17211.0,0.00016767,2]
[347096320,1735494657985,-42900.0,0.00016767,2]
[347096321,1735494657993,-26178.0,0.00016767,2]
[347096322,1735494658003,-150.0,0.00016785,2]
[347096323,1735494658012,-150.0,0.00016787,2]
[347096324,1735494658020,-150.0,0.00016787,2]
[347096325,1735494658029,-233723.32829502,0.000168,3]
[347096326,1735494658038,-270764.25833277,0.000168,3]
[347096327,1735494658047,-80862.83075449,0.000168,3]
[347096328,1735494658056,-887.50501801,0.00016822,2]
[347096329,1735494658065,-150.0,0.00016837,2]
[347096330,1735494658074,-150.0,0.0001684,2]
[347096331,1735494658083,-266.2515054,0.00016849,2]
[347096332,1735494658092,-150.0,0.00016862,2]
[347096333,1735494658101,-150.0,0.00016862,2]
[347096334,1735494658110,-221.8762545,0.00016877,2]
[347096335,1735494658119,-443.75250901,0.00016877,2]
[347096336,1735494658128,-150.0,0.0001688,2]
[347096337,1735494658137,-480.93,0.00016895,2]
[347096338,1735494658146,-150.0,0.00016901,2]
[347096339,1735494658155,-887.50501801,0.00016904,2]
[347096340,1735494658164,-365.277,0.0001691,2]
[347096341,1735494658174,-266.2515054,0.00016932,2]
[347096342,1735494658183,-221.8762545,0.00016932,2]
[347096343,1735494658192,-221.8762545,0.00016932,2]
[347096344,1735494658202,-150.0,0.00016944,2]
[347096345,1735494658211,-150.0,0.00016955,2]
[347096346,1735494658221,-221.8762545,0.00016959,2]
[347096347,1735494658230,-443.75250901,0.00016959,2]
[347096348,1735494658239,-150.0,0.00016959,2]
[347096349,1735494658249,-912.67,0.00016961,2]
[347096350,1735494658258,-2504.01,0.00016962,7]
[347096351,1735494658267,-2504.01,0.00016962,7]
[347096352,1735494658276,-150.0,0.00016967,2]
[347096353,1735494658286,-150.0,0.00016985,2]
[347096354,1735494658295,-887.50501801,0.00016986,2]
[347096355,1735494658304,-800.0,0.00016986,2]
[347096356,1735494658314,-150.0,0.00016993,2]
[347096357,1735494658323,-500.0,0.00016999,2]
[347096358,1735494658332,-389.0,0.00017,7]
[347096359,1735494658341,-500.0,0.00017,7]
[347096360,1735494658350,-500.0,0.00017,7]
[347096361,1735494658359,-500.0,0.00017,7]
[347096362,1735494658369,-500.0,0.00017,7]
[347096363,1735494658378,-545.72,0.00017,7]
[347096364,1735494658387,-500.0,0.00017,7]
[347096365,1735494658396,-500.0,0.00017,7]
[347096366,1735494658405,-500.0,0.00017,7]
[347096367,1735494658414,-500.0,0.00017,7]
[347096368,1735494658423,-500.0,0.00017,7]
[347096369,1735494658433,-500.0,0.00017,7]
[347096370,1735494658442,-500.0,0.00017,7]
[347096371,1735494658451,-500.0,0.00017,7]
[347096372,1735494658463,-500.0,0.00017,7]
[347096373,1735494658472,-500.0,0.00017,7]
[347096374,1735494658480,-500.0,0.00017,7]
[347096375,1735494658489,-500.0,0.00017,7]
[347096376,1735494658499,-500.0,0.00017,7]
[347096377,1735494658508,-500.0,0.00017,7]
[347096378,1735494658517,-500.0,0.00017,7]
[347096379,1735494658526,-500.0,0.00017,7]
[347096380,1735494658535,-500.0,0.00017,7]
[347096381,1735494658544,-500.0,0.00017,7]
[347096382,1735494658553,-500.0,0.00017,7]
[347096383,1735494658562,-500.0,0.00017,7]
[347096384,1735494658571,-500.0,0.00017,7]
[347096385,1735494658579,-500.0,0.00017,7]